[Event "Titled Tuesday Blitz March 28 Late 2023"]
[White "Svane, Rasmus"]
[Black "Bartel, Mateusz"]
[WhiteFideId "4657101"]
[BlackFideId "1112635"]
[WhiteElo "2597"]
[BlackElo "2521"]
[Result "1-0"]
[Round "11"]
[TimeControl "180+2"]
[Date "2023.03.28"]
[WhiteClock "0:00:10"]
[BlackClock "0:00:02"]

1. Nf3 {[%clk 0:03:00]}  Nf6 {[%clk 0:02:58]} 2. g3 {[%clk 0:03:01]}  d5 {[%clk 0:02:56]} 3. Bg2 {[%clk 0:03:01]}  e6 {[%clk 0:02:56]} 4. O-O {[%clk 0:03:01]}  Be7 {[%clk 0:02:56]} 5. c4 {[%clk 0:03:02]}  O-O {[%clk 0:02:50]} 6. b3 {[%clk 0:03:02]}  d4 {[%clk 0:02:48]} 7. e3 {[%clk 0:03:02]}  c5 {[%clk 0:02:49]} 8. Ne5 {[%clk 0:03:03]}  Nfd7 {[%clk 0:02:45]} 9. exd4 {[%clk 0:03:03]}  cxd4 {[%clk 0:02:44]} 10. Nxd7 {[%clk 0:03:03]}  Qxd7 {[%clk 0:02:45]} 11. Ba3 {[%clk 0:02:58]}  Bxa3 {[%clk 0:02:36]} 12. Nxa3 {[%clk 0:02:59]}  Nc6 {[%clk 0:02:36]} 13. d3 {[%clk 0:02:58]}  b6 {[%clk 0:02:36]} 14. Qd2 {[%clk 0:02:26]}  Bb7 {[%clk 0:02:34]} 15. Rae1 {[%clk 0:02:26]}  Ne7 {[%clk 0:02:20]} 16. Bxb7 {[%clk 0:02:22]}  Qxb7 {[%clk 0:02:21]} 17. Nb5 {[%clk 0:02:04]}  Rad8 {[%clk 0:02:19]} 18. Qf4 {[%clk 0:02:03]}  Nc6 {[%clk 0:02:06]} 19. Re2 {[%clk 0:01:21]}  Qe7 {[%clk 0:01:58]} 20. Qc7 {[%clk 0:01:18]}  Qxc7 {[%clk 0:01:54]} 21. Nxc7 {[%clk 0:01:19]}  Rd7 {[%clk 0:01:52]} 22. Na6 {[%clk 0:01:12]}  e5 {[%clk 0:01:15]} 23. b4 {[%clk 0:01:08]}  f6 {[%clk 0:01:12]} 24. Rc1 {[%clk 0:00:59]}  Re8 {[%clk 0:01:02]} 25. a4 {[%clk 0:00:49]}  f5 {[%clk 0:01:02]} 26. c5 {[%clk 0:00:49]}  Re6 {[%clk 0:00:50]} 27. b5 {[%clk 0:00:48]}  Na5 {[%clk 0:00:39]} 28. c6 {[%clk 0:00:47]}  Rd8 {[%clk 0:00:39]} 29. Rce1 {[%clk 0:00:38]}  e4 {[%clk 0:00:35]} 30. Nb4 {[%clk 0:00:32]}  Nb3 {[%clk 0:00:32]} 31. dxe4 {[%clk 0:00:19]}  d3 {[%clk 0:00:31]} 32. Nxd3 {[%clk 0:00:19]}  Rxd3 {[%clk 0:00:31]} 33. exf5 {[%clk 0:00:20]}  Rxe2 {[%clk 0:00:29]} 34. Rxe2 {[%clk 0:00:21]}  Rc3 {[%clk 0:00:17]} 35. Re7 {[%clk 0:00:21]}  Nc5 {[%clk 0:00:15]} 36. c7 {[%clk 0:00:16]}  Kf8 {[%clk 0:00:07]} 37. c8=Q+ {[%clk 0:00:14]}  Kxe7 {[%clk 0:00:07]} 38. Qc7+ {[%clk 0:00:13]}  Kf6 {[%clk 0:00:07]} 39. Qxa7 {[%clk 0:00:10]}  Rf3 {[%clk 0:00:02]} 40. Qxb6+ {[%clk 0:00:10]} 1-0


[Site "https://www.chess.com"]

[Event "Titled Tuesday Blitz March 28 Late 2023"]
[White "Duda, Jan-Krzysztof"]
[Black "Rasulov, Vugar"]
[WhiteFideId "1170546"]
[BlackFideId "13402390"]
[WhiteElo "2790"]
[BlackElo "2509"]
[Result "0-1"]
[Round "11"]
[TimeControl "180+2"]
[Date "2023.03.28"]
[WhiteClock "0:00:02"]
[BlackClock "0:00:07"]

1. e4 {[%clk 0:03:00]}  e5 {[%clk 0:02:59]} 2. Nf3 {[%clk 0:03:01]}  Nc6 {[%clk 0:03:00]} 3. Bb5 {[%clk 0:03:01]}  a6 {[%clk 0:02:59]} 4. Ba4 {[%clk 0:03:01]}  Nf6 {[%clk 0:02:59]} 5. O-O {[%clk 0:03:01]}  Be7 {[%clk 0:02:59]} 6. d3 {[%clk 0:03:00]}  b5 {[%clk 0:02:58]} 7. Bb3 {[%clk 0:03:00]}  d6 {[%clk 0:02:56]} 8. c3 {[%clk 0:02:58]}  O-O {[%clk 0:02:56]} 9. a4 {[%clk 0:02:58]}  Bb7 {[%clk 0:02:50]} 10. Re1 {[%clk 0:02:58]}  h6 {[%clk 0:02:41]} 11. Bc2 {[%clk 0:02:57]}  Re8 {[%clk 0:02:39]} 12. Nbd2 {[%clk 0:02:56]}  Bf8 {[%clk 0:02:36]} 13. h3 {[%clk 0:02:53]}  d5 {[%clk 0:02:36]} 14. exd5 {[%clk 0:02:53]}  Nxd5 {[%clk 0:02:37]} 15. Ne4 {[%clk 0:02:53]}  b4 {[%clk 0:02:26]} 16. a5 {[%clk 0:02:49]}  Rb8 {[%clk 0:02:23]} 17. Bd2 {[%clk 0:02:48]}  Nf6 {[%clk 0:02:12]} 18. Qe2 {[%clk 0:02:40]}  Nxe4 {[%clk 0:02:07]} 19. dxe4 {[%clk 0:02:41]}  Re6 {[%clk 0:01:58]} 20. Bd3 {[%clk 0:02:36]}  Rd6 {[%clk 0:01:54]} 21. Bc4 {[%clk 0:02:36]}  bxc3 {[%clk 0:01:52]} 22. bxc3 {[%clk 0:02:35]}  Bc8 {[%clk 0:01:52]} 23. Be3 {[%clk 0:02:33]}  Rg6 {[%clk 0:01:43]} 24. Kh2 {[%clk 0:02:31]}  Rd6 {[%clk 0:01:33]} 25. Bc5 {[%clk 0:02:28]}  Rf6 {[%clk 0:01:32]} 26. Red1 {[%clk 0:02:27]}  Qe8 {[%clk 0:01:26]} 27. Be3 {[%clk 0:02:25]}  Bd6 {[%clk 0:01:18]} 28. Bxa6 {[%clk 0:02:10]}  Nd4 {[%clk 0:01:18]} 29. Qf1 {[%clk 0:01:51]}  Nxf3+ {[%clk 0:01:14]} 30. gxf3 {[%clk 0:01:51]}  Rxf3 {[%clk 0:00:59]} 31. Bxc8 {[%clk 0:01:49]}  Qxc8 {[%clk 0:01:00]} 32. Qg2 {[%clk 0:01:34]}  Rf6 {[%clk 0:00:59]} 33. a6 {[%clk 0:01:34]}  Ra8 {[%clk 0:00:51]} 34. a7 {[%clk 0:01:34]}  c5 {[%clk 0:00:49]} 35. Rg1 {[%clk 0:00:54]}  Bf8 {[%clk 0:00:46]} 36. Ra5 {[%clk 0:00:46]}  Ra6 {[%clk 0:00:44]} 37. Rxc5 {[%clk 0:00:38]}  Qb7 {[%clk 0:00:31]} 38. Rd5 {[%clk 0:00:24]}  Rc8 {[%clk 0:00:31]} 39. Rgd1 {[%clk 0:00:22]}  Rxc3 {[%clk 0:00:24]} 40. Rd7 {[%clk 0:00:12]}  Qb3 {[%clk 0:00:16]} 41. Qf3 {[%clk 0:00:06]}  Ra2 {[%clk 0:00:14]} 42. Kh1 {[%clk 0:00:03]}  Qe6 {[%clk 0:00:10]} 43. Qg4 {[%clk 0:00:03]}  Qb3 {[%clk 0:00:07]} 44. Rd8 {[%clk 0:00:03]}  Rxe3 {[%clk 0:00:07]} 45. a8=Q {[%clk 0:00:02]}  Rxa8 {[%clk 0:00:06]} 46. Rxa8 {[%clk 0:00:02]}  Rxh3+ {[%clk 0:00:07]} 47. Kg2 {[%clk 0:00:03]}  Rd3 {[%clk 0:00:06]} 48. Rxd3 {[%clk 0:00:02]}  Qxd3 {[%clk 0:00:07]} 49. Qf5 {[%clk 0:00:02]}  Qd4 {[%clk 0:00:06]} 50. Re8 {[%clk 0:00:02]}  g6 {[%clk 0:00:06]} 51. Qxe5 {[%clk 0:00:02]}  Qd7 {[%clk 0:00:07]} 0-1


[Site "https://www.chess.com"]

[Event "Titled Tuesday Blitz March 28 Late 2023"]
[White "Kamsky, Gata"]
[Black "Erigaisi Arjun"]
[WhiteFideId "2000024"]
[BlackFideId "35009192"]
[WhiteElo "2666"]
[BlackElo "2737"]
[Result "0-1"]
[Round "11"]
[TimeControl "180+2"]
[Date "2023.03.28"]
[WhiteClock "0:00:09"]
[BlackClock "0:01:08"]

1. d4 {[%clk 0:03:00]}  d6 {[%clk 0:02:59]} 2. Nf3 {[%clk 0:02:53]}  g6 {[%clk 0:02:59]} 3. c4 {[%clk 0:02:47]}  Bg7 {[%clk 0:02:59]} 4. g3 {[%clk 0:02:47]}  Nc6 {[%clk 0:02:57]} 5. Bg2 {[%clk 0:02:47]}  Bd7 {[%clk 0:02:56]} 6. Nc3 {[%clk 0:02:46]}  Qc8 {[%clk 0:02:55]} 7. O-O {[%clk 0:02:45]}  Bh3 {[%clk 0:02:54]} 8. e4 {[%clk 0:02:43]}  h5 {[%clk 0:02:52]} 9. Be3 {[%clk 0:02:31]}  h4 {[%clk 0:02:43]} 10. Nxh4 {[%clk 0:02:27]}  Bxg2 {[%clk 0:02:42]} 11. Kxg2 {[%clk 0:02:26]}  Bf6 {[%clk 0:02:43]} 12. Nf3 {[%clk 0:01:39]}  Qh3+ {[%clk 0:02:42]} 13. Kh1 {[%clk 0:01:39]}  g5 {[%clk 0:02:37]} 14. Rg1 {[%clk 0:01:38]}  g4 {[%clk 0:02:09]} 15. Nh4 {[%clk 0:01:37]}  Bxh4 {[%clk 0:02:10]} 16. gxh4 {[%clk 0:01:37]}  Rxh4 {[%clk 0:02:10]} 17. Rg2 {[%clk 0:01:34]}  Nf6 {[%clk 0:02:10]} 18. Bg5 {[%clk 0:01:27]}  O-O-O {[%clk 0:01:58]} 19. Bxh4 {[%clk 0:01:24]}  Qxh4 {[%clk 0:01:59]} 20. Kg1 {[%clk 0:01:23]}  e5 {[%clk 0:01:57]} 21. dxe5 {[%clk 0:00:24]}  dxe5 {[%clk 0:01:56]} 22. Nd5 {[%clk 0:00:24]}  Nd4 {[%clk 0:01:56]} 23. Kf1 {[%clk 0:00:23]}  Nxd5 {[%clk 0:01:21]} 24. cxd5 {[%clk 0:00:22]}  Nf3 {[%clk 0:01:21]} 25. Rc1 {[%clk 0:00:18]}  Qh3 {[%clk 0:01:17]} 26. Qc2 {[%clk 0:00:14]}  Rd7 {[%clk 0:01:16]} 27. Qc5 {[%clk 0:00:13]}  Nh4 {[%clk 0:01:07]} 28. Qf8+ {[%clk 0:00:11]}  Rd8 {[%clk 0:01:08]} 29. Qxf7 {[%clk 0:00:09]}  Qxg2+ {[%clk 0:01:08]} 30. Ke2 {[%clk 0:00:09]}  Qxe4+ {[%clk 0:01:08]} 0-1


[Site "https://www.chess.com"]

[Event "Titled Tuesday Blitz March 28 Late 2023"]
[White "Andreikin, Dmitry"]
[Black "Sarana, Alexey"]
[WhiteFideId "4158814"]
[BlackFideId "24133795"]
[WhiteElo "2736"]
[BlackElo "2714"]
[Result "0-1"]
[Round "11"]
[TimeControl "180+2"]
[Date "2023.03.28"]
[WhiteClock "0:00:03"]
[BlackClock "0:01:37"]

1. e4 {[%clk 0:03:00]}  e5 {[%clk 0:02:59]} 2. Nf3 {[%clk 0:02:59]}  Nc6 {[%clk 0:03:00]} 3. Nc3 {[%clk 0:03:00]}  Nf6 {[%clk 0:03:00]} 4. h3 {[%clk 0:03:00]}  Bb4 {[%clk 0:02:52]} 5. Nd5 {[%clk 0:03:00]}  Nxd5 {[%clk 0:02:51]} 6. exd5 {[%clk 0:03:00]}  e4 {[%clk 0:02:51]} 7. dxc6 {[%clk 0:02:58]}  exf3 {[%clk 0:02:51]} 8. Qxf3 {[%clk 0:02:59]}  dxc6 {[%clk 0:02:51]} 9. Bc4 {[%clk 0:02:58]}  O-O {[%clk 0:02:51]} 10. O-O {[%clk 0:02:58]}  Qg5 {[%clk 0:02:49]} 11. d3 {[%clk 0:02:57]}  Qf5 {[%clk 0:02:48]} 12. Qxf5 {[%clk 0:02:45]}  Bxf5 {[%clk 0:02:49]} 13. Bf4 {[%clk 0:02:44]}  Bd6 {[%clk 0:02:49]} 14. Bxd6 {[%clk 0:02:43]}  cxd6 {[%clk 0:02:49]} 15. Rfe1 {[%clk 0:02:41]}  Rfe8 {[%clk 0:02:49]} 16. f4 {[%clk 0:02:39]}  d5 {[%clk 0:02:47]} 17. Bb3 {[%clk 0:02:39]}  h5 {[%clk 0:02:47]} 18. Kf2 {[%clk 0:02:38]}  h4 {[%clk 0:02:47]} 19. Rad1 {[%clk 0:01:51]}  Kf8 {[%clk 0:02:45]} 20. c3 {[%clk 0:01:47]}  Rxe1 {[%clk 0:02:41]} 21. Kxe1 {[%clk 0:01:48]}  Re8+ {[%clk 0:02:40]} 22. Kf2 {[%clk 0:01:47]}  Re6 {[%clk 0:02:40]} 23. Bc2 {[%clk 0:01:45]}  Ke7 {[%clk 0:02:37]} 24. a3 {[%clk 0:01:41]}  c5 {[%clk 0:02:35]} 25. Rd2 {[%clk 0:01:24]}  Kd6 {[%clk 0:02:33]} 26. Bb3 {[%clk 0:01:19]}  b5 {[%clk 0:02:28]} 27. d4 {[%clk 0:01:19]}  cxd4 {[%clk 0:02:15]} 28. Rxd4 {[%clk 0:01:18]}  Be4 {[%clk 0:02:15]} 29. Bd1 {[%clk 0:01:14]}  f5 {[%clk 0:02:11]} 30. a4 {[%clk 0:00:49]}  a6 {[%clk 0:02:11]} 31. axb5 {[%clk 0:00:48]}  axb5 {[%clk 0:02:12]} 32. Rb4 {[%clk 0:00:48]}  Rg6 {[%clk 0:02:08]} 33. Bf3 {[%clk 0:00:48]}  Kc5 {[%clk 0:02:01]} 34. Rd4 {[%clk 0:00:40]}  Bxf3 {[%clk 0:01:50]} 35. Kxf3 {[%clk 0:00:40]}  Re6 {[%clk 0:01:49]} 36. b4+ {[%clk 0:00:27]}  Kd6 {[%clk 0:01:48]} 37. Rd1 {[%clk 0:00:27]}  Re4 {[%clk 0:01:47]} 38. Rd4 {[%clk 0:00:19]}  Kc6 {[%clk 0:01:43]} 39. Kf2 {[%clk 0:00:16]}  Re7 {[%clk 0:01:41]} 40. Rd3 {[%clk 0:00:14]}  Ra7 {[%clk 0:01:40]} 41. g3 {[%clk 0:00:13]}  Ra2+ {[%clk 0:01:40]} 42. Kf3 {[%clk 0:00:10]}  Rh2 {[%clk 0:01:40]} 43. gxh4 {[%clk 0:00:09]}  Rxh3+ {[%clk 0:01:40]} 44. Ke2 {[%clk 0:00:10]}  Rh2+ {[%clk 0:01:34]} 45. Ke1 {[%clk 0:00:03]}  Rxh4 {[%clk 0:01:33]} 46. Rg3 {[%clk 0:00:04]}  d4 {[%clk 0:01:33]} 47. cxd4 {[%clk 0:00:03]}  Rxf4 {[%clk 0:01:33]} 48. Rxg7 {[%clk 0:00:02]}  Rxd4 {[%clk 0:01:32]} 49. Rg5 {[%clk 0:00:03]}  f4 {[%clk 0:01:31]} 50. Ke2 {[%clk 0:00:02]}  Rxb4 {[%clk 0:01:31]} 51. Rf5 {[%clk 0:00:03]}  Rc4 {[%clk 0:01:32]} 52. Kd3 {[%clk 0:00:03]}  Kb6 {[%clk 0:01:32]} 53. Rf6+ {[%clk 0:00:03]}  Ka5 {[%clk 0:01:33]} 54. Rf5 {[%clk 0:00:04]}  Ka4 {[%clk 0:01:33]} 55. Rf8 {[%clk 0:00:04]}  Rc7 {[%clk 0:01:33]} 56. Rxf4+ {[%clk 0:00:04]}  b4 {[%clk 0:01:34]} 57. Kd2 {[%clk 0:00:03]}  Ka3 {[%clk 0:01:34]} 58. Kd1 {[%clk 0:00:02]}  b3 {[%clk 0:01:35]} 59. Rf8 {[%clk 0:00:02]}  b2 {[%clk 0:01:34]} 60. Ra8+ {[%clk 0:00:02]}  Kb3 {[%clk 0:01:35]} 61. Rb8+ {[%clk 0:00:03]}  Ka2 {[%clk 0:01:35]} 62. Ra8+ {[%clk 0:00:03]}  Kb1 {[%clk 0:01:36]} 63. Kd2 {[%clk 0:00:02]}  Rd7+ {[%clk 0:01:35]} 64. Kc3 {[%clk 0:00:02]}  Kc1 {[%clk 0:01:35]} 65. Rh8 {[%clk 0:00:03]}  b1=Q {[%clk 0:01:35]} 66. Rh1+ {[%clk 0:00:02]}  Rd1 {[%clk 0:01:36]} 67. Rxd1+ {[%clk 0:00:03]}  Kxd1 {[%clk 0:01:37]} 0-1


[Site "https://www.chess.com"]

[Event "Titled Tuesday Blitz March 28 Late 2023"]
[White "Deac, Bogdan-Daniel"]
[Black "Naroditsky, Daniel"]
[WhiteFideId "1226380"]
[BlackFideId "2026961"]
[WhiteElo "2649"]
[BlackElo "2633"]
[Result "1-0"]
[Round "11"]
[TimeControl "180+2"]
[Date "2023.03.28"]
[WhiteClock "0:00:08"]
[BlackClock "0:00:06"]

1. e4 {[%clk 0:03:00]}  c5 {[%clk 0:02:59]} 2. Nf3 {[%clk 0:03:00]}  d6 {[%clk 0:03:00]} 3. d4 {[%clk 0:03:01]}  cxd4 {[%clk 0:03:01]} 4. Nxd4 {[%clk 0:03:01]}  Nf6 {[%clk 0:03:01]} 5. Nc3 {[%clk 0:03:02]}  a6 {[%clk 0:03:02]} 6. Bd3 {[%clk 0:03:00]}  g6 {[%clk 0:02:54]} 7. f3 {[%clk 0:03:00]}  Bg7 {[%clk 0:02:54]} 8. Be3 {[%clk 0:03:00]}  b5 {[%clk 0:02:54]} 9. Qd2 {[%clk 0:02:59]}  h5 {[%clk 0:02:51]} 10. a4 {[%clk 0:02:57]}  b4 {[%clk 0:02:36]} 11. Na2 {[%clk 0:02:57]}  a5 {[%clk 0:02:32]} 12. c3 {[%clk 0:02:57]}  bxc3 {[%clk 0:02:31]} 13. Nxc3 {[%clk 0:02:58]}  O-O {[%clk 0:02:26]} 14. O-O {[%clk 0:02:57]}  Bb7 {[%clk 0:02:22]} 15. Bb5 {[%clk 0:02:52]}  Nbd7 {[%clk 0:02:22]} 16. Nb3 {[%clk 0:02:49]}  Ne5 {[%clk 0:02:17]} 17. Rad1 {[%clk 0:02:40]}  Qc7 {[%clk 0:02:16]} 18. Qe2 {[%clk 0:02:35]}  Rfc8 {[%clk 0:02:16]} 19. Rc1 {[%clk 0:02:12]}  Qd8 {[%clk 0:02:16]} 20. h3 {[%clk 0:02:09]}  Nc6 {[%clk 0:02:11]} 21. Rfd1 {[%clk 0:02:04]}  Nb4 {[%clk 0:02:08]} 22. Nd2 {[%clk 0:01:49]}  d5 {[%clk 0:01:56]} 23. Nc4 {[%clk 0:01:48]}  Nd7 {[%clk 0:01:31]} 24. exd5 {[%clk 0:01:21]}  Bxc3 {[%clk 0:01:22]} 25. bxc3 {[%clk 0:01:09]}  Nxd5 {[%clk 0:01:22]} 26. Bd4 {[%clk 0:00:39]}  N7f6 {[%clk 0:01:18]} 27. Ne5 {[%clk 0:00:32]}  Qc7 {[%clk 0:01:12]} 28. c4 {[%clk 0:00:31]}  Nf4 {[%clk 0:01:13]} 29. Qe3 {[%clk 0:00:31]}  Ne6 {[%clk 0:01:13]} 30. Bb6 {[%clk 0:00:28]}  Qb8 {[%clk 0:01:11]} 31. Nxg6 {[%clk 0:00:22]}  Qg3 {[%clk 0:00:56]} 32. Nxe7+ {[%clk 0:00:20]}  Kf8 {[%clk 0:00:57]} 33. Nf5 {[%clk 0:00:17]}  Qg6 {[%clk 0:00:57]} 34. Qh6+ {[%clk 0:00:16]}  Qxh6 {[%clk 0:00:57]} 35. Nxh6 {[%clk 0:00:17]}  Nf4 {[%clk 0:00:49]} 36. Rc2 {[%clk 0:00:12]}  Bc6 {[%clk 0:00:43]} 37. Rcd2 {[%clk 0:00:11]}  Bxb5 {[%clk 0:00:36]} 38. cxb5 {[%clk 0:00:11]}  Rc4 {[%clk 0:00:37]} 39. Nf5 {[%clk 0:00:10]}  Ne6 {[%clk 0:00:37]} 40. Bd4 {[%clk 0:00:07]}  Nd5 {[%clk 0:00:30]} 41. Bg7+ {[%clk 0:00:05]}  Nxg7 {[%clk 0:00:30]} 42. Rxd5 {[%clk 0:00:06]}  Ne6 {[%clk 0:00:24]} 43. Ra1 {[%clk 0:00:05]}  Nf4 {[%clk 0:00:22]} 44. Rd2 {[%clk 0:00:05]}  Rb4 {[%clk 0:00:13]} 45. Kh2 {[%clk 0:00:04]}  Rc8 {[%clk 0:00:12]} 46. Ne3 {[%clk 0:00:02]}  Rc3 {[%clk 0:00:10]} 47. Nd5 {[%clk 0:00:03]}  Nxd5 {[%clk 0:00:10]} 48. Rxd5 {[%clk 0:00:03]}  Rb2 {[%clk 0:00:11]} 49. Rxh5 {[%clk 0:00:03]}  Rxf3 {[%clk 0:00:11]} 50. Rg5 {[%clk 0:00:04]}  Rf4 {[%clk 0:00:08]} 51. Rg3 {[%clk 0:00:04]}  Rbb4 {[%clk 0:00:08]} 52. Rf3 {[%clk 0:00:03]}  Rxa4 {[%clk 0:00:02]} 53. Rxa4 {[%clk 0:00:04]}  Rxa4 {[%clk 0:00:02]} 54. Rb3 {[%clk 0:00:04]}  Rc4 {[%clk 0:00:01]} 55. b6 {[%clk 0:00:05]}  Rc8 {[%clk 0:00:02]} 56. b7 {[%clk 0:00:05]}  Rb8 {[%clk 0:00:02]} 57. Rb1 {[%clk 0:00:05]}  a4 {[%clk 0:00:03]} 58. Kg3 {[%clk 0:00:06]}  a3 {[%clk 0:00:04]} 59. Ra1 {[%clk 0:00:06]}  Rxb7 {[%clk 0:00:04]} 60. Rxa3 {[%clk 0:00:06]}  Rb4 {[%clk 0:00:05]} 61. Rf3 {[%clk 0:00:07]}  Kg7 {[%clk 0:00:06]} 62. Rf4 {[%clk 0:00:07]}  Rb2 {[%clk 0:00:06]} 63. h4 {[%clk 0:00:07]}  Kg6 {[%clk 0:00:07]} 64. Rg4+ {[%clk 0:00:07]}  Kh6 {[%clk 0:00:07]} 65. Kh3 {[%clk 0:00:08]}  f6 {[%clk 0:00:06]} 66. Rf4 {[%clk 0:00:08]}  Kg6 {[%clk 0:00:06]} 67. g4 {[%clk 0:00:09]}  Rb3+ {[%clk 0:00:07]} 68. Kg2 {[%clk 0:00:09]}  Rb2+ {[%clk 0:00:07]} 69. Kg3 {[%clk 0:00:09]}  Rb3+ {[%clk 0:00:08]} 70. Rf3 {[%clk 0:00:10]}  Rb1 {[%clk 0:00:05]} 71. h5+ {[%clk 0:00:09]}  Kg7 {[%clk 0:00:06]} 72. Rf5 {[%clk 0:00:09]}  Rg1+ {[%clk 0:00:05]} 73. Kh3 {[%clk 0:00:09]}  Rh1+ {[%clk 0:00:05]} 74. Kg2 {[%clk 0:00:10]}  Rb1 {[%clk 0:00:06]} 75. Ra5 {[%clk 0:00:10]}  Kh6 {[%clk 0:00:03]} 76. Kg3 {[%clk 0:00:10]}  Rg1+ {[%clk 0:00:03]} 77. Kf3 {[%clk 0:00:10]}  Rf1+ {[%clk 0:00:04]} 78. Kg2 {[%clk 0:00:10]}  Rf4 {[%clk 0:00:04]} 79. Kg3 {[%clk 0:00:10]}  Rf1 {[%clk 0:00:05]} 80. Rb5 {[%clk 0:00:09]}  Rg1+ {[%clk 0:00:04]} 81. Kh3 {[%clk 0:00:09]}  Rf1 {[%clk 0:00:04]} 82. Kg2 {[%clk 0:00:08]}  Rf4 {[%clk 0:00:05]} 83. Kg3 {[%clk 0:00:08]}  Rf1 {[%clk 0:00:05]} 84. Rb8 {[%clk 0:00:08]}  Rg1+ {[%clk 0:00:03]} 85. Kf3 {[%clk 0:00:08]}  Rf1+ {[%clk 0:00:04]} 86. Kg2 {[%clk 0:00:08]}  Rf4 {[%clk 0:00:04]} 87. Kg3 {[%clk 0:00:08]}  Rf1 {[%clk 0:00:05]} 88. Rh8+ {[%clk 0:00:08]}  Kg7 {[%clk 0:00:05]} 89. Rb8 {[%clk 0:00:08]}  Kh6 {[%clk 0:00:06]} 90. Rg8 {[%clk 0:00:07]}  Rg1+ {[%clk 0:00:03]} 91. Kf2 {[%clk 0:00:06]}  Ra1 {[%clk 0:00:01]} 92. Rg6+ {[%clk 0:00:07]}  Kh7 {[%clk 0:00:02]} 93. Rxf6 {[%clk 0:00:07]}  Ra4 {[%clk 0:00:03]} 94. Kg3 {[%clk 0:00:08]}  Kg7 {[%clk 0:00:03]} 95. Rf4 {[%clk 0:00:08]}  Ra3+ {[%clk 0:00:03]} 96. Kh4 {[%clk 0:00:08]}  Ra1 {[%clk 0:00:04]} 97. Kg5 {[%clk 0:00:08]}  Ra6 {[%clk 0:00:04]} 98. Rf5 {[%clk 0:00:08]}  Kh7 {[%clk 0:00:04]} 99. Rf6 {[%clk 0:00:07]}  Ra5+ {[%clk 0:00:04]} 100. Rf5 {[%clk 0:00:07]}  Ra6 {[%clk 0:00:05]} 101. Rb5 {[%clk 0:00:08]}  Ra7 {[%clk 0:00:04]} 102. Rb4 {[%clk 0:00:08]}  Rg7+ {[%clk 0:00:05]} 103. Kh4 {[%clk 0:00:08]}  Rc7 {[%clk 0:00:06]} 104. g5 {[%clk 0:00:09]}  Kg7 {[%clk 0:00:06]} 105. h6+ {[%clk 0:00:09]}  Kh7 {[%clk 0:00:06]} 106. Kh5 {[%clk 0:00:08]}  Rc6 {[%clk 0:00:07]} 107. g6+ {[%clk 0:00:07]}  Rxg6 {[%clk 0:00:05]} 108. Rb7+ {[%clk 0:00:07]}  Rg7 {[%clk 0:00:06]} 109. Rxg7+ {[%clk 0:00:07]}  Kh8 {[%clk 0:00:06]} 110. Rg5 {[%clk 0:00:08]} 1-0


[Site "https://www.chess.com"]

[Event "Titled Tuesday Blitz March 28 Late 2023"]
[White "Kramnik, Vladimir"]
[Black "Timmermans, Mark"]
[WhiteFideId "4101588"]
[BlackFideId "1026399"]
[WhiteElo "2712"]
[BlackElo "2460"]
[Result "1-0"]
[Round "11"]
[TimeControl "180+2"]
[Date "2023.03.28"]
[WhiteClock "0:00:21"]
[BlackClock "0:00:20"]

1. e4 {[%clk 0:02:54]}  e5 {[%clk 0:02:59]} 2. Nf3 {[%clk 0:02:54]}  Nc6 {[%clk 0:02:59]} 3. Bc4 {[%clk 0:02:53]}  Nf6 {[%clk 0:02:59]} 4. d3 {[%clk 0:02:53]}  Be7 {[%clk 0:02:59]} 5. O-O {[%clk 0:02:52]}  O-O {[%clk 0:02:59]} 6. Re1 {[%clk 0:02:52]}  d6 {[%clk 0:03:00]} 7. a4 {[%clk 0:02:52]}  Kh8 {[%clk 0:03:00]} 8. a5 {[%clk 0:02:50]}  a6 {[%clk 0:03:00]} 9. Nc3 {[%clk 0:02:49]}  Ng8 {[%clk 0:03:00]} 10. Nd5 {[%clk 0:02:38]}  f5 {[%clk 0:03:00]} 11. h3 {[%clk 0:02:36]}  Bf6 {[%clk 0:02:59]} 12. c3 {[%clk 0:02:34]}  Nce7 {[%clk 0:02:57]} 13. Nxf6 {[%clk 0:02:24]}  Nxf6 {[%clk 0:02:57]} 14. exf5 {[%clk 0:02:13]}  Bxf5 {[%clk 0:02:51]} 15. d4 {[%clk 0:02:11]}  e4 {[%clk 0:02:50]} 16. Nh2 {[%clk 0:01:52]}  d5 {[%clk 0:02:48]} 17. Bf1 {[%clk 0:01:52]}  Qd7 {[%clk 0:02:24]} 18. Ra3 {[%clk 0:01:42]}  Rae8 {[%clk 0:02:19]} 19. c4 {[%clk 0:01:41]}  c6 {[%clk 0:02:18]} 20. Rg3 {[%clk 0:01:31]}  Bg6 {[%clk 0:02:10]} 21. Ng4 {[%clk 0:01:30]}  Nxg4 {[%clk 0:02:01]} 22. hxg4 {[%clk 0:01:30]}  Qd6 {[%clk 0:01:58]} 23. Qb3 {[%clk 0:01:14]}  Qf6 {[%clk 0:01:54]} 24. Be3 {[%clk 0:01:12]}  Rb8 {[%clk 0:01:43]} 25. c5 {[%clk 0:01:05]}  Nc8 {[%clk 0:01:23]} 26. f4 {[%clk 0:01:00]}  Na7 {[%clk 0:01:21]} 27. f5 {[%clk 0:00:58]}  Bf7 {[%clk 0:01:21]} 28. Rh3 {[%clk 0:00:56]}  Nb5 {[%clk 0:01:20]} 29. Bxb5 {[%clk 0:00:54]}  axb5 {[%clk 0:01:19]} 30. Rf1 {[%clk 0:00:53]}  g5 {[%clk 0:01:07]} 31. Qd1 {[%clk 0:00:44]}  Kg7 {[%clk 0:01:02]} 32. Qd2 {[%clk 0:00:38]}  h6 {[%clk 0:01:03]} 33. Bf2 {[%clk 0:00:38]}  Rfe8 {[%clk 0:01:00]} 34. Re3 {[%clk 0:00:37]}  Ra8 {[%clk 0:01:01]} 35. Bg3 {[%clk 0:00:36]}  Re7 {[%clk 0:00:57]} 36. Bd6 {[%clk 0:00:35]}  Ree8 {[%clk 0:00:56]} 37. Rd1 {[%clk 0:00:33]}  Kg8 {[%clk 0:00:55]} 38. b4 {[%clk 0:00:33]}  Rad8 {[%clk 0:00:43]} 39. Bc7 {[%clk 0:00:30]}  Rc8 {[%clk 0:00:43]} 40. Bh2 {[%clk 0:00:29]}  Kh7 {[%clk 0:00:35]} 41. Qf2 {[%clk 0:00:29]}  h5 {[%clk 0:00:30]} 42. gxh5 {[%clk 0:00:27]}  Bxh5 {[%clk 0:00:31]} 43. Rh3 {[%clk 0:00:26]}  e3 {[%clk 0:00:20]} 44. Rxh5+ {[%clk 0:00:25]}  Kg8 {[%clk 0:00:21]} 45. Qg3 {[%clk 0:00:22]}  e2 {[%clk 0:00:20]} 46. Qxg5+ {[%clk 0:00:21]} 1-0


[Site "https://www.chess.com"]